[Event "Titled Tuesday Blitz February 15 Late 2022"]
[White "Rasulov, Vugar"]
[Black "Chernomordik, Pavel"]
[WhiteFideId "13402390"]
[BlackFideId "2804530"]
[WhiteElo "2560"]
[BlackElo "2249"]
[Result "1-0"]
[Round "03"]
[TimeControl "180+1"]
[Date "2022.02.16"]
[WhiteClock "0:01:58"]
[BlackClock "0:00:01"]

1. e4 {[%clk 0:03:00]}  g6 {[%clk 0:02:58]} 2. d4 {[%clk 0:03:00]}  Bg7 {[%clk 0:02:57]} 3. Nf3 {[%clk 0:03:01]}  d6 {[%clk 0:02:57]} 4. Bc4 {[%clk 0:03:01]}  e6 {[%clk 0:02:56]} 5. O-O {[%clk 0:03:01]}  b6 {[%clk 0:02:56]} 6. Bb3 {[%clk 0:03:01]}  Bb7 {[%clk 0:02:56]} 7. Re1 {[%clk 0:03:01]}  Nd7 {[%clk 0:02:55]} 8. Nbd2 {[%clk 0:03:01]}  Ne7 {[%clk 0:02:55]} 9. c3 {[%clk 0:03:02]}  O-O {[%clk 0:02:54]} 10. Nf1 {[%clk 0:03:02]}  h6 {[%clk 0:02:53]} 11. Ng3 {[%clk 0:03:03]}  Nf6 {[%clk 0:02:52]} 12. e5 {[%clk 0:03:02]}  dxe5 {[%clk 0:02:29]} 13. Nxe5 {[%clk 0:03:03]}  Ned5 {[%clk 0:02:21]} 14. Qe2 {[%clk 0:02:58]}  a5 {[%clk 0:02:16]} 15. a3 {[%clk 0:02:57]}  Qd6 {[%clk 0:02:09]} 16. Bc2 {[%clk 0:02:49]}  c5 {[%clk 0:02:06]} 17. Nc4 {[%clk 0:02:42]}  Qc7 {[%clk 0:02:05]} 18. dxc5 {[%clk 0:02:43]}  Qxc5 {[%clk 0:02:04]} 19. Ne4 {[%clk 0:02:43]}  Nxe4 {[%clk 0:02:01]} 20. Bxe4 {[%clk 0:02:44]}  Ba6 {[%clk 0:02:01]} 21. Bd3 {[%clk 0:02:44]}  a4 {[%clk 0:01:54]} 22. Ne5 {[%clk 0:02:41]}  Bxd3 {[%clk 0:01:51]} 23. Nxd3 {[%clk 0:02:41]}  Qc4 {[%clk 0:01:47]} 24. Qf3 {[%clk 0:02:39]}  Rad8 {[%clk 0:01:45]} 25. Nf4 {[%clk 0:02:39]}  Nxf4 {[%clk 0:01:37]} 26. Bxf4 {[%clk 0:02:40]}  Rd3 {[%clk 0:01:36]} 27. Be3 {[%clk 0:02:40]}  b5 {[%clk 0:01:33]} 28. Rad1 {[%clk 0:02:40]}  Rfd8 {[%clk 0:01:32]} 29. Rxd3 {[%clk 0:02:40]}  Qxd3 {[%clk 0:01:30]} 30. h4 {[%clk 0:02:41]}  h5 {[%clk 0:01:24]} 31. Qb7 {[%clk 0:02:38]}  Bf6 {[%clk 0:01:16]} 32. g3 {[%clk 0:02:36]}  Qd5 {[%clk 0:01:14]} 33. Qc7 {[%clk 0:02:33]}  Be5 {[%clk 0:01:08]} 34. Qe7 {[%clk 0:02:32]}  Qd7 {[%clk 0:01:02]} 35. Qb4 {[%clk 0:02:32]}  Qd5 {[%clk 0:00:56]} 36. Bg5 {[%clk 0:02:29]}  f6 {[%clk 0:00:51]} 37. Bf4 {[%clk 0:02:26]}  Bxf4 {[%clk 0:00:49]} 38. Qxf4 {[%clk 0:02:27]}  Kg7 {[%clk 0:00:46]} 39. Qc7+ {[%clk 0:02:20]}  Rd7 {[%clk 0:00:46]} 40. Qb6 {[%clk 0:02:21]}  e5 {[%clk 0:00:45]} 41. Qb8 {[%clk 0:02:19]}  Rd8 {[%clk 0:00:44]} 42. Qc7+ {[%clk 0:02:19]}  Rd7 {[%clk 0:00:44]} 43. Qc8 {[%clk 0:02:19]}  Rd8 {[%clk 0:00:44]} 44. Qa6 {[%clk 0:02:19]}  Rd7 {[%clk 0:00:42]} 45. Qb6 {[%clk 0:02:17]}  Rd6 {[%clk 0:00:41]} 46. Qa5 {[%clk 0:02:13]}  f5 {[%clk 0:00:34]} 47. Qc7+ {[%clk 0:02:12]}  Kf6 {[%clk 0:00:30]} 48. Qh7 {[%clk 0:02:11]}  Rd8 {[%clk 0:00:27]} 49. Qh6 {[%clk 0:02:11]}  Qd2 {[%clk 0:00:24]} 50. Re3 {[%clk 0:02:10]}  Qd1+ {[%clk 0:00:22]} 51. Kh2 {[%clk 0:02:09]}  Qd2 {[%clk 0:00:18]} 52. Qg5+ {[%clk 0:02:09]}  Kf7 {[%clk 0:00:18]} 53. Kg2 {[%clk 0:02:08]}  Qd5+ {[%clk 0:00:17]} 54. Rf3 {[%clk 0:02:08]}  e4 {[%clk 0:00:17]} 55. Re3 {[%clk 0:02:08]}  Rd7 {[%clk 0:00:13]} 56. Qh6 {[%clk 0:02:07]}  Kf6 {[%clk 0:00:12]} 57. Qf8+ {[%clk 0:02:07]}  Rf7 {[%clk 0:00:10]} 58. Qh8+ {[%clk 0:02:07]}  Ke6 {[%clk 0:00:09]} 59. Re1 {[%clk 0:02:02]}  f4 {[%clk 0:00:07]} 60. Qe8+ {[%clk 0:02:00]}  Kf6 {[%clk 0:00:05]} 61. gxf4 {[%clk 0:02:01]}  e3+ {[%clk 0:00:03]} 62. Kg3 {[%clk 0:02:01]}  exf2 {[%clk 0:00:02]} 63. Kxf2 {[%clk 0:02:01]}  Kg7 {[%clk 0:00:01]} 64. Qe4 {[%clk 0:01:58]} 1-0


[Site "https://www.chess.com"]

[Event "Titled Tuesday Blitz February 15 Late 2022"]
[White "Riehle, Marco"]
[Black "Haszon, David"]
[WhiteFideId "12904392"]
[BlackFideId "733610"]
[WhiteElo "2462"]
[BlackElo "2201"]
[Result "0-1"]
[Round "03"]
[TimeControl "180+1"]
[Date "2022.02.15"]
[WhiteClock "0:01:00"]
[BlackClock "0:00:35"]

1. e4 {[%clk 0:03:00]}  c5 {[%clk 0:03:00]} 2. a3 {[%clk 0:02:58]}  g6 {[%clk 0:02:58]} 3. h4 {[%clk 0:02:56]}  h5 {[%clk 0:02:56]} 4. Nc3 {[%clk 0:02:54]}  Bg7 {[%clk 0:02:55]} 5. Bc4 {[%clk 0:02:54]}  Nc6 {[%clk 0:02:55]} 6. d3 {[%clk 0:02:54]}  Nd4 {[%clk 0:02:55]} 7. Nf3 {[%clk 0:02:52]}  e6 {[%clk 0:02:55]} 8. Nxd4 {[%clk 0:02:53]}  cxd4 {[%clk 0:02:52]} 9. Ne2 {[%clk 0:02:52]}  b5 {[%clk 0:02:49]} 10. Bb3 {[%clk 0:02:49]}  Ne7 {[%clk 0:02:50]} 11. Bg5 {[%clk 0:02:49]}  Qa5+ {[%clk 0:02:45]} 12. Bd2 {[%clk 0:02:44]}  Qc7 {[%clk 0:02:41]} 13. Bg5 {[%clk 0:02:43]}  Nc6 {[%clk 0:02:40]} 14. Qd2 {[%clk 0:02:42]}  a5 {[%clk 0:02:40]} 15. O-O-O {[%clk 0:02:41]}  a4 {[%clk 0:02:20]} 16. Ba2 {[%clk 0:02:41]}  Rb8 {[%clk 0:02:20]} 17. g4 {[%clk 0:02:25]}  b4 {[%clk 0:02:14]} 18. axb4 {[%clk 0:02:21]}  Nxb4 {[%clk 0:02:13]} 19. Bc4 {[%clk 0:02:21]}  d5 {[%clk 0:02:03]} 20. exd5 {[%clk 0:02:21]}  exd5 {[%clk 0:02:04]} 21. Bf4 {[%clk 0:02:21]}  Be5 {[%clk 0:01:56]} 22. Bxe5 {[%clk 0:02:21]}  Qxe5 {[%clk 0:01:57]} 23. Rde1 {[%clk 0:02:18]}  O-O {[%clk 0:01:49]} 24. Ng3 {[%clk 0:02:18]}  Qf6 {[%clk 0:01:29]} 25. gxh5 {[%clk 0:01:55]}  dxc4 {[%clk 0:01:28]} 26. dxc4 {[%clk 0:01:54]}  Na2+ {[%clk 0:01:11]} 27. Kb1 {[%clk 0:01:51]}  d3 {[%clk 0:01:07]} 28. cxd3 {[%clk 0:01:48]}  a3 {[%clk 0:01:01]} 29. Re2 {[%clk 0:01:14]}  Nc3+ {[%clk 0:00:48]} 30. Kc1 {[%clk 0:01:02]}  Nxe2+ {[%clk 0:00:46]} 31. Nxe2 {[%clk 0:01:01]}  Rxb2 {[%clk 0:00:45]} 32. Qe3 {[%clk 0:01:01]}  Rb1+ {[%clk 0:00:34]} 33. Kxb1 {[%clk 0:01:00]}  Qb2# {[%clk 0:00:35]} 0-1


[Site "https://www.chess.com"]

[Event "Titled Tuesday Blitz February 15 Late 2022"]
[White "Romero Ruscalleda, Josep"]
[Black "Fishbein, Alexander"]
[WhiteFideId "2231859"]
[BlackFideId "2000377"]
[WhiteElo "2419"]
[BlackElo "2442"]
[Result "0-1"]
[Round "03"]
[TimeControl "180+1"]
[Date "2022.02.16"]
[WhiteClock "0:00:01"]
[BlackClock "0:00:15"]

1. e4 {[%clk 0:03:00]}  c5 {[%clk 0:02:58]} 2. c3 {[%clk 0:03:00]}  e6 {[%clk 0:02:58]} 3. d4 {[%clk 0:03:00]}  d5 {[%clk 0:02:58]} 4. e5 {[%clk 0:03:00]}  Nc6 {[%clk 0:02:58]} 5. Be3 {[%clk 0:03:01]}  Nh6 {[%clk 0:02:54]} 6. Nf3 {[%clk 0:03:00]}  Nf5 {[%clk 0:02:54]} 7. Bd3 {[%clk 0:02:55]}  cxd4 {[%clk 0:02:49]} 8. cxd4 {[%clk 0:02:54]}  Bb4+ {[%clk 0:02:50]} 9. Nc3 {[%clk 0:02:54]}  O-O {[%clk 0:02:44]} 10. O-O {[%clk 0:02:53]}  Nxe3 {[%clk 0:02:29]} 11. fxe3 {[%clk 0:02:53]}  f6 {[%clk 0:02:30]} 12. exf6 {[%clk 0:02:43]}  Rxf6 {[%clk 0:02:29]} 13. Ne2 {[%clk 0:02:40]}  Bd6 {[%clk 0:01:55]} 14. e4 {[%clk 0:02:34]}  dxe4 {[%clk 0:01:55]} 15. Bxe4 {[%clk 0:02:34]}  Bd7 {[%clk 0:01:52]} 16. d5 {[%clk 0:02:30]}  exd5 {[%clk 0:01:43]} 17. Qxd5+ {[%clk 0:02:23]}  Be6 {[%clk 0:01:41]} 18. Qd3 {[%clk 0:02:14]}  Bc5+ {[%clk 0:01:40]} 19. Kh1 {[%clk 0:02:13]}  Qxd3 {[%clk 0:01:41]} 20. Bxd3 {[%clk 0:02:14]}  Nb4 {[%clk 0:01:35]} 21. Be4 {[%clk 0:02:10]}  Bc4 {[%clk 0:01:35]} 22. Rfc1 {[%clk 0:01:56]}  Bxe2 {[%clk 0:01:12]} 23. Rxc5 {[%clk 0:01:54]}  Re8 {[%clk 0:01:09]} 24. Bxb7 {[%clk 0:01:34]}  Nd3 {[%clk 0:01:09]} 25. Rc2 {[%clk 0:01:25]}  Nf4 {[%clk 0:01:04]} 26. Ng5 {[%clk 0:01:10]}  Bd3 {[%clk 0:01:01]} 27. Rf2 {[%clk 0:01:05]}  h6 {[%clk 0:00:58]} 28. Nf3 {[%clk 0:00:54]}  Bc4 {[%clk 0:00:49]} 29. b3 {[%clk 0:00:48]}  Bf7 {[%clk 0:00:49]} 30. Re1 {[%clk 0:00:39]}  Rxe1+ {[%clk 0:00:43]} 31. Nxe1 {[%clk 0:00:39]}  Re6 {[%clk 0:00:37]} 32. Nc2 {[%clk 0:00:27]}  Nd3 {[%clk 0:00:33]} 33. Rd2 {[%clk 0:00:25]}  Nb4 {[%clk 0:00:31]} 34. h3 {[%clk 0:00:18]}  Nxa2 {[%clk 0:00:30]} 35. Nd4 {[%clk 0:00:18]}  Re1+ {[%clk 0:00:29]} 36. Kh2 {[%clk 0:00:18]}  Nc3 {[%clk 0:00:28]} 37. Nf3 {[%clk 0:00:16]}  Re3 {[%clk 0:00:26]} 38. Rd8+ {[%clk 0:00:14]}  Kh7 {[%clk 0:00:26]} 39. Rd7 {[%clk 0:00:14]}  Bxb3 {[%clk 0:00:24]} 40. Nd4 {[%clk 0:00:11]}  Rd3 {[%clk 0:00:18]} 41. g4 {[%clk 0:00:03]}  Rd2+ {[%clk 0:00:18]} 42. Kg3 {[%clk 0:00:03]}  Ne2+ {[%clk 0:00:18]} 43. Nxe2 {[%clk 0:00:02]}  Rxd7 {[%clk 0:00:18]} 44. Be4+ {[%clk 0:00:03]}  Kh8 {[%clk 0:00:18]} 45. Nc3 {[%clk 0:00:04]}  Bc4 {[%clk 0:00:17]} 46. Kf4 {[%clk 0:00:04]}  a5 {[%clk 0:00:16]} 47. Bf5 {[%clk 0:00:03]}  Rd4+ {[%clk 0:00:16]} 48. Ke5 {[%clk 0:00:03]}  Rd2 {[%clk 0:00:16]} 49. h4 {[%clk 0:00:02]}  Bb3 {[%clk 0:00:15]} 50. h5 {[%clk 0:00:01]}  a4 {[%clk 0:00:15]} 0-1


[Site "https://www.chess.com"]

[Event "Titled Tuesday Blitz February 15 Late 2022"]
[White "Rosen, Eric"]
[Black "Stanisz, Patryk"]
[WhiteFideId "2032562"]
[BlackFideId "1123106"]
[WhiteElo "2362"]
[BlackElo "1876"]
[Result "1-0"]
[Round "03"]
[TimeControl "180+1"]
[Date "2022.02.16"]
[WhiteClock "0:00:08"]
[BlackClock "0:00:09"]

1. d4 {[%clk 0:03:00]}  d5 {[%clk 0:02:58]} 2. Bf4 {[%clk 0:02:55]}  Nf6 {[%clk 0:02:57]} 3. e3 {[%clk 0:02:55]}  c5 {[%clk 0:02:57]} 4. Nf3 {[%clk 0:02:55]}  Nc6 {[%clk 0:02:56]} 5. Nbd2 {[%clk 0:02:54]}  e6 {[%clk 0:02:56]} 6. c3 {[%clk 0:02:53]}  cxd4 {[%clk 0:02:55]} 7. exd4 {[%clk 0:02:53]}  Nh5 {[%clk 0:02:56]} 8. Be3 {[%clk 0:02:53]}  Bd6 {[%clk 0:02:53]} 9. Ne5 {[%clk 0:02:53]}  g6 {[%clk 0:02:52]} 10. g4 {[%clk 0:02:52]}  Ng7 {[%clk 0:02:52]} 11. h4 {[%clk 0:02:53]}  h5 {[%clk 0:02:52]} 12. Bg5 {[%clk 0:02:43]}  Be7 {[%clk 0:01:47]} 13. Bb5 {[%clk 0:02:18]}  Bd7 {[%clk 0:01:41]} 14. Bxc6 {[%clk 0:02:18]}  Bxc6 {[%clk 0:01:41]} 15. Qf3 {[%clk 0:02:19]}  O-O {[%clk 0:01:00]} 16. Bh6 {[%clk 0:02:03]}  Bf6 {[%clk 0:00:38]} 17. gxh5 {[%clk 0:01:30]}  Nxh5 {[%clk 0:00:27]} 18. Bxf8 {[%clk 0:01:19]}  Kxf8 {[%clk 0:00:23]} 19. Rg1 {[%clk 0:01:09]}  Bxe5 {[%clk 0:00:18]} 20. dxe5 {[%clk 0:01:09]}  Qxh4 {[%clk 0:00:19]} 21. O-O-O {[%clk 0:01:08]}  d4 {[%clk 0:00:18]} 22. Qg4 {[%clk 0:00:56]}  Qxg4 {[%clk 0:00:17]} 23. Rxg4 {[%clk 0:00:57]}  dxc3 {[%clk 0:00:18]} 24. bxc3 {[%clk 0:00:57]}  Rc8 {[%clk 0:00:16]} 25. Kb2 {[%clk 0:00:53]}  Ng7 {[%clk 0:00:14]} 26. Rh4 {[%clk 0:00:46]}  Ke7 {[%clk 0:00:14]} 27. Rh7 {[%clk 0:00:37]}  Nf5 {[%clk 0:00:14]} 28. Nc4 {[%clk 0:00:37]}  Ba4 {[%clk 0:00:11]} 29. Nd6 {[%clk 0:00:33]}  Bxd1 {[%clk 0:00:04]} 30. Rxf7+ {[%clk 0:00:23]}  Kd8 {[%clk 0:00:02]} 31. Rf8+ {[%clk 0:00:19]}  Kd7 {[%clk 0:00:02]} 32. Nxc8 {[%clk 0:00:16]}  Bf3 {[%clk 0:00:03]} 33. Nxa7 {[%clk 0:00:13]}  b6 {[%clk 0:00:03]} 34. a4 {[%clk 0:00:12]}  Ne7 {[%clk 0:00:04]} 35. Rxf3 {[%clk 0:00:11]}  Nd5 {[%clk 0:00:04]} 36. Rd3 {[%clk 0:00:11]}  g5 {[%clk 0:00:05]} 37. Nb5 {[%clk 0:00:11]}  g4 {[%clk 0:00:06]} 38. c4 {[%clk 0:00:11]}  Kc6 {[%clk 0:00:06]} 39. cxd5+ {[%clk 0:00:12]}  Kc5 {[%clk 0:00:06]} 40. dxe6 {[%clk 0:00:10]}  g3 {[%clk 0:00:07]} 41. e7 {[%clk 0:00:10]}  g2 {[%clk 0:00:08]} 42. e8=Q {[%clk 0:00:09]}  g1=Q {[%clk 0:00:08]} 43. Qc8+ {[%clk 0:00:09]}  Kb4 {[%clk 0:00:09]} 44. Rd4+ {[%clk 0:00:08]}  Ka5 {[%clk 0:00:09]} 45. Qa8# {[%clk 0:00:08]} 1-0


[Site "https://www.chess.com"]

[Event "Titled Tuesday Blitz February 15 Late 2022"]
[White "Sailer, Mike"]
[Black "Delaney, Killian"]
[WhiteFideId "2012901"]
[BlackFideId "2501570"]
[WhiteElo "2109"]
[BlackElo "2306"]
[Result "1-0"]
[Round "03"]
[TimeControl "180+1"]
[Date "2022.02.16"]
[WhiteClock "0:00:13"]
[BlackClock "0:00:46"]

1. d4 {[%clk 0:03:00]}  d5 {[%clk 0:02:54]} 2. Nf3 {[%clk 0:02:59]}  Nf6 {[%clk 0:02:51]} 3. Bf4 {[%clk 0:02:59]}  c5 {[%clk 0:02:51]} 4. e3 {[%clk 0:02:59]}  Nc6 {[%clk 0:02:47]} 5. Nc3 {[%clk 0:02:59]}  Bg4 {[%clk 0:02:43]} 6. Be2 {[%clk 0:02:56]}  e6 {[%clk 0:02:41]} 7. h3 {[%clk 0:02:54]}  Bh5 {[%clk 0:02:41]} 8. O-O {[%clk 0:02:53]}  Bd6 {[%clk 0:02:41]} 9. Bxd6 {[%clk 0:02:52]}  Qxd6 {[%clk 0:02:41]} 10. Nb5 {[%clk 0:02:50]}  Qe7 {[%clk 0:02:39]} 11. dxc5 {[%clk 0:02:50]}  O-O {[%clk 0:02:39]} 12. Nfd4 {[%clk 0:02:35]}  Bxe2 {[%clk 0:02:35]} 13. Qxe2 {[%clk 0:02:32]}  Qxc5 {[%clk 0:02:34]} 14. Nxc6 {[%clk 0:02:30]}  bxc6 {[%clk 0:02:28]} 15. Nd4 {[%clk 0:02:29]}  Rab8 {[%clk 0:02:16]} 16. Rab1 {[%clk 0:02:28]}  Rb6 {[%clk 0:02:12]} 17. Rfc1 {[%clk 0:02:26]}  Rfb8 {[%clk 0:02:11]} 18. c4 {[%clk 0:02:25]}  Qa5 {[%clk 0:01:57]} 19. c5 {[%clk 0:02:09]}  Ra6 {[%clk 0:01:57]} 20. a3 {[%clk 0:02:05]}  e5 {[%clk 0:01:44]} 21. Nf5 {[%clk 0:01:56]}  g6 {[%clk 0:01:42]} 22. Nd6 {[%clk 0:01:47]}  Nd7 {[%clk 0:01:39]} 23. Qc2 {[%clk 0:01:28]}  Qa4 {[%clk 0:01:29]} 24. Qc3 {[%clk 0:01:17]}  Qb3 {[%clk 0:01:25]} 25. Qd2 {[%clk 0:01:05]}  Ra4 {[%clk 0:01:20]} 26. Rc3 {[%clk 0:01:01]}  Qa2 {[%clk 0:01:20]} 27. Qc2 {[%clk 0:00:58]}  d4 {[%clk 0:01:07]} 28. exd4 {[%clk 0:00:52]}  exd4 {[%clk 0:01:07]} 29. Rf3 {[%clk 0:00:40]}  f5 {[%clk 0:01:06]} 30. Rxf5 {[%clk 0:00:19]}  Qb3 {[%clk 0:00:59]} 31. Qxb3+ {[%clk 0:00:19]}  Rxb3 {[%clk 0:01:00]} 32. Rf7 {[%clk 0:00:17]}  Nxc5 {[%clk 0:00:59]} 33. Rc7 {[%clk 0:00:15]}  Raxa3 {[%clk 0:00:55]} 34. Re1 {[%clk 0:00:14]}  Rb8 {[%clk 0:00:49]} 35. Ree7 {[%clk 0:00:14]}  Ra1+ {[%clk 0:00:47]} 36. Kh2 {[%clk 0:00:14]}  d3 {[%clk 0:00:47]} 37. Rg7+ {[%clk 0:00:14]}  Kf8 {[%clk 0:00:46]} 38. Rcf7# {[%clk 0:00:13]} 1-0


[Site "https://www.chess.com"]

[Event "Titled Tuesday Blitz February 15 Late 2022"]
[White "Sargsyan, Anna M."]
[Black "Pinto, Daniel"]
[WhiteFideId "13308130"]
[BlackFideId "3303144"]
[WhiteElo "2271"]
[BlackElo "1938"]
[Result "1-0"]
[Round "03"]
[TimeControl "180+1"]
[Date "2022.02.16"]
[WhiteClock "0:00:39"]
[BlackClock "0:00:03"]

1. d4 {[%clk 0:02:58]}  Nf6 {[%clk 0:02:56]} 2. c4 {[%clk 0:02:58]}  c6 {[%clk 0:02:52]} 3. Nf3 {[%clk 0:02:57]}  d5 {[%clk 0:02:51]} 4. Nc3 {[%clk 0:02:58]}  Bg4 {[%clk 0:02:48]} 5. Ne5 {[%clk 0:02:50]}  Bf5 {[%clk 0:02:38]} 6. cxd5 {[%clk 0:02:50]}  Nxd5 {[%clk 0:02:31]} 7. Qb3 {[%clk 0:02:50]}  Qb6 {[%clk 0:02:25]} 8. Nxd5 {[%clk 0:02:44]}  cxd5 {[%clk 0:02:20]} 9. Qxd5 {[%clk 0:02:17]}  e6 {[%clk 0:02:16]} 10. Qc4 {[%clk 0:02:05]}  Bb4+ {[%clk 0:02:07]} 11. Kd1 {[%clk 0:02:03]}  Nd7 {[%clk 0:01:32]} 12. Nxd7 {[%clk 0:01:57]}  Kxd7 {[%clk 0:01:32]} 13. e3 {[%clk 0:01:53]}  Rhc8 {[%clk 0:01:20]} 14. Qb5+ {[%clk 0:01:53]}  Ke7 {[%clk 0:00:51]} 15. Bd3 {[%clk 0:01:12]}  Qxb5 {[%clk 0:00:40]} 16. Bxb5 {[%clk 0:01:12]}  Bc2+ {[%clk 0:00:13]} 17. Ke2 {[%clk 0:01:11]}  Be4 {[%clk 0:00:13]} 18. f3 {[%clk 0:01:04]}  Rc2+ {[%clk 0:00:12]} 19. Kd1 {[%clk 0:01:01]}  Bg6 {[%clk 0:00:11]} 20. a3 {[%clk 0:00:47]}  Ba5 {[%clk 0:00:07]} 21. b4 {[%clk 0:00:45]}  Bb6 {[%clk 0:00:04]} 22. Bd2 {[%clk 0:00:44]}  Rac8 {[%clk 0:00:05]} 23. Ke2 {[%clk 0:00:43]}  Rb2 {[%clk 0:00:04]} 24. Rhc1 {[%clk 0:00:43]}  Rcc2 {[%clk 0:00:04]} 25. Rxc2 {[%clk 0:00:43]}  Rxc2 {[%clk 0:00:04]} 26. Bd3 {[%clk 0:00:42]}  Rb2 {[%clk 0:00:05]} 27. Bxg6 {[%clk 0:00:42]}  hxg6 {[%clk 0:00:05]} 28. Kd3 {[%clk 0:00:42]}  f6 {[%clk 0:00:05]} 29. a4 {[%clk 0:00:40]}  a5 {[%clk 0:00:03]} 30. bxa5 {[%clk 0:00:40]}  Bd8 {[%clk 0:00:04]} 31. Kc3 {[%clk 0:00:39]}  Rxd2 {[%clk 0:00:02]} 32. Kxd2 {[%clk 0:00:39]}  Bxa5+ {[%clk 0:00:03]} 33. Kd3 {[%clk 0:00:39]} 1-0


[Site "https://www.chess.com"]

[Event "Titled Tuesday Blitz February 15 Late 2022"]
[White "Saveliev, Alexei"]
[Black "Kashefi, Amir Hosein"]
[WhiteFideId "24128546"]
[BlackFideId "12557935"]
[WhiteElo "2281"]
[BlackElo "2098"]
[Result "1-0"]
[Round "03"]
[TimeControl "180+1"]
[Date "2022.02.16"]
[WhiteClock "0:00:33"]
[BlackClock "0:00:08"]

1. c4 {[%clk 0:03:00]}  c6 {[%clk 0:02:56]} 2. d4 {[%clk 0:02:59]}  d5 {[%clk 0:02:56]} 3. Nf3 {[%clk 0:02:59]}  Nf6 {[%clk 0:02:56]} 4. g3 {[%clk 0:03:00]}  Bf5 {[%clk 0:02:55]} 5. Bg2 {[%clk 0:02:59]}  e6 {[%clk 0:02:54]} 6. O-O {[%clk 0:02:58]}  Nbd7 {[%clk 0:02:53]} 7. Nc3 {[%clk 0:02:58]}  Be7 {[%clk 0:02:51]} 8. Nh4 {[%clk 0:02:35]}  Bg4 {[%clk 0:02:44]} 9. h3 {[%clk 0:02:33]}  Bh5 {[%clk 0:02:44]} 10. g4 {[%clk 0:02:30]}  Bg6 {[%clk 0:02:43]} 11. Nxg6 {[%clk 0:02:29]}  hxg6 {[%clk 0:02:44]} 12. Bf4 {[%clk 0:02:24]}  dxc4 {[%clk 0:02:43]} 13. e4 {[%clk 0:02:17]}  Nb6 {[%clk 0:02:34]} 14. a3 {[%clk 0:01:52]}  Qd7 {[%clk 0:02:26]} 15. Qd2 {[%clk 0:01:52]}  O-O-O {[%clk 0:02:23]} 16. Rfd1 {[%clk 0:01:43]}  Rh4 {[%clk 0:02:10]} 17. a4 {[%clk 0:01:42]}  a5 {[%clk 0:02:06]} 18. Qe3 {[%clk 0:01:11]}  Rdh8 {[%clk 0:01:15]} 19. d5 {[%clk 0:01:10]}  Bd8 {[%clk 0:01:15]} 20. dxc6 {[%clk 0:01:05]}  Qxc6 {[%clk 0:01:14]} 21. Nb5 {[%clk 0:01:05]}  Nfd5 {[%clk 0:00:41]} 22. Na7+ {[%clk 0:00:58]}  Kd7 {[%clk 0:00:39]} 23. Nxc6 {[%clk 0:00:58]}  Kxc6 {[%clk 0:00:36]} 24. exd5+ {[%clk 0:00:56]}  Nxd5 {[%clk 0:00:36]} 25. Rac1 {[%clk 0:00:45]}  b5 {[%clk 0:00:22]} 26. axb5+ {[%clk 0:00:46]}  Kxb5 {[%clk 0:00:23]} 27. Bxd5 {[%clk 0:00:43]}  exd5 {[%clk 0:00:23]} 28. Rxd5+ {[%clk 0:00:43]}  Ka6 {[%clk 0:00:18]} 29. Rd6+ {[%clk 0:00:43]}  Kb7 {[%clk 0:00:15]} 30. Qe4+ {[%clk 0:00:42]}  Ka7 {[%clk 0:00:11]} 31. Rd7+ {[%clk 0:00:42]}  Kb6 {[%clk 0:00:08]} 32. Be3+ {[%clk 0:00:33]} 1-0


[Site "https://www.chess.com"]

[Event "Titled Tuesday Blitz February 15 Late 2022"]
[White "Sorokin, Aleksey"]
[Black "Moiseenko, Alexander"]
[WhiteFideId "24176460"]
[BlackFideId "14102560"]
[WhiteElo "2476"]
[BlackElo "2577"]
[Result "0-1"]
[Round "03"]
[TimeControl "180+1"]
[Date "2022.02.15"]
[WhiteClock "0:01:04"]
[BlackClock "0:00:04"]

1. e4 {[%clk 0:03:00]}  c5 {[%clk 0:02:57]} 2. Nf3 {[%clk 0:02:50]}  Nc6 {[%clk 0:02:57]} 3. Bb5 {[%clk 0:02:49]}  e6 {[%clk 0:02:56]} 4. O-O {[%clk 0:02:48]}  Nge7 {[%clk 0:02:56]} 5. Re1 {[%clk 0:02:48]}  Ng6 {[%clk 0:02:55]} 6. c4 {[%clk 0:02:45]}  Nd4 {[%clk 0:02:53]} 7. Ba4 {[%clk 0:02:45]}  Be7 {[%clk 0:02:47]} 8. d3 {[%clk 0:02:44]}  O-O {[%clk 0:02:46]} 9. Be3 {[%clk 0:02:43]}  e5 {[%clk 0:02:44]} 10. Nc3 {[%clk 0:02:43]}  d6 {[%clk 0:02:45]} 11. Nd5 {[%clk 0:02:42]}  Bg4 {[%clk 0:02:43]} 12. Bxd4 {[%clk 0:02:38]}  cxd4 {[%clk 0:02:41]} 13. h3 {[%clk 0:02:38]}  Be6 {[%clk 0:02:41]} 14. Rc1 {[%clk 0:02:30]}  Kh8 {[%clk 0:02:39]} 15. b4 {[%clk 0:02:27]}  f5 {[%clk 0:02:39]} 16. Bb3 {[%clk 0:02:15]}  fxe4 {[%clk 0:02:14]} 17. dxe4 {[%clk 0:02:14]}  Bxd5 {[%clk 0:01:58]} 18. exd5 {[%clk 0:02:14]}  a5 {[%clk 0:01:44]} 19. a3 {[%clk 0:02:11]}  axb4 {[%clk 0:01:44]} 20. axb4 {[%clk 0:02:10]}  Nf4 {[%clk 0:01:14]} 21. c5 {[%clk 0:02:05]}  Qe8 {[%clk 0:01:14]} 22. Bc2 {[%clk 0:01:56]}  Qh5 {[%clk 0:01:06]} 23. Nxe5 {[%clk 0:01:41]}  Qxd1 {[%clk 0:00:43]} 24. Rcxd1 {[%clk 0:01:42]}  dxe5 {[%clk 0:00:43]} 25. Rxe5 {[%clk 0:01:41]}  Bf6 {[%clk 0:00:41]} 26. Rf5 {[%clk 0:01:37]}  Ne2+ {[%clk 0:00:38]} 27. Kh2 {[%clk 0:01:31]}  Nc3 {[%clk 0:00:38]} 28. Rxf6 {[%clk 0:01:23]}  Rxf6 {[%clk 0:00:34]} 29. Rxd4 {[%clk 0:01:23]}  Rxf2 {[%clk 0:00:34]} 30. c6 {[%clk 0:01:15]}  Rxc2 {[%clk 0:00:23]} 31. cxb7 {[%clk 0:01:14]}  Rg8 {[%clk 0:00:22]} 32. Rc4 {[%clk 0:01:13]}  Rb2 {[%clk 0:00:17]} 33. d6 {[%clk 0:01:13]}  Nd5 {[%clk 0:00:08]} 34. d7 {[%clk 0:01:13]}  Nb6 {[%clk 0:00:05]} 35. Rc8 {[%clk 0:01:13]}  Nxd7 {[%clk 0:00:04]} 36. Rc7 {[%clk 0:01:04]}  Nb8 {[%clk 0:00:04]} 0-1


[Site "https://www.chess.com"]